bitfinex/quotes_ETHUSD_20250720
["timestamp","ask_amount","ask_price","bid_price","bid_amount"]
[1753036872898,0.6828,3745.7,3745.1,2.80290975]
[1753036873194,3.35255468,3745.7,3745.1,0.1328]
[1753036873694,0.6828,3745.7,3745.1,0.1328]
[1753036873893,0.6828,3745.7,3745.1,2.80294909]
[1753036874311,0.6828,3745.7,3745.2,2.67008327]
[1753036874897,3.35257477,3745.7,3745.1,0.1328]
[1753036875060,0.6828,3745.7,3745.1,0.1328]
[1753036875393,0.55,3744.9,3744.3,0.001]
[1753036875592,3.22044088,3744.7,3744.3,0.001]
[1753036875793,0.55,3744.7,3744.3,0.001]
[1753036876386,3.22044088,3744.7,3744.3,0.001]
[1753036876689,3.69434088,3744.7,3744.3,0.001]
[1753036877503,4.43584088,3744.7,3744.3,0.001]
[1753036877894,5.56015989,3744.7,3744.3,0.001]
[1753036879098,8.56015989,3744.7,3744.3,0.001]
[1753036881299,9.26015989,3744.7,3744.3,0.001]
[1753036886407,23.42661101,3744.7,3744.6,1e-08]
[1753036887471,27.56361101,3744.7,3744.6,1e-08]
[1753036888617,31.56361101,3744.7,3744.6,1e-08]
[1753036888801,21.03015989,3744.7,3744.6,1e-08]
[1753036889001,20.00625989,3744.7,3744.6,1e-08]
[1753036889192,23.01894088,3744.7,3744.6,1e-08]
[1753036889581,14.88194088,3744.7,3744.6,1e-08]
[1753036889885,18.27744088,3744.7,3744.6,1e-08]
[1753036890220,15.27744088,3744.7,3744.6,1e-08]
[1753036890515,21.36371562,3744.7,3744.6,1e-08]
[1753036890687,21.80831562,3744.7,3744.6,1e-08]
[1753036893321,21.36371562,3744.7,3744.6,1e-08]
[1753036894590,21.80831562,3744.7,3744.6,1e-08]
[1753036898715,21.36371562,3744.7,3744.6,1e-08]
[1753036899012,21.80831562,3744.7,3744.6,1e-08]
[1753036899213,25.87534536,3744.7,3744.6,1e-08]
[1753036899595,3.9622975,3744.2,3744.1,0.021]
[1753036899790,19.93432724,3744.2,3744.1,0.021]
[1753036899997,20.37892724,3744.2,3744.1,0.021]
[1753036900984,22.93432724,3744.2,3744.1,0.021]
[1753036901279,23.37892724,3744.2,3744.1,0.021]
[1753036901485,25.17370198,3744.2,3744.1,0.021]
[1753036901913,24.72910198,3744.2,3744.1,0.021]
[1753036902220,20.66207224,3744.2,3744.1,0.021]
[1753036903488,21.10667224,3744.2,3744.1,0.021]
[1753036903687,16.52707224,3744.2,3744.1,0.021]
[1753036903896,19.37057224,3744.2,3744.1,0.021]
[1753036904225,19.37057224,3744.2,3744.1,0.4613]
[1753036904428,19.92057224,3744.2,3744.1,0.4613]
[1753036904923,10.77,3744.2,3744.1,0.4613]
[1753036905226,17.5757975,3744.2,3744.1,0.021]
[1753036905593,18.1257975,3744.2,3744.1,0.021]
[1753036907125,18.8672975,3744.2,3744.1,0.021]
[1753036908535,19.3118975,3744.2,3744.1,0.021]
[1753036908747,21.06555879,3744.2,3744.1,0.021]
[1753036910007,20.32305879,3744.2,3744.1,0.4613]
[1753036910208,18.1247975,3744.2,3744.1,0.4613]
[1753036911909,13.9907975,3744.2,3744.1,0.4613]
[1753036912109,18.1237975,3744.2,3744.1,0.4613]
[1753036912310,13.9907975,3744.2,3744.1,0.4613]
[1753036912611,18.1237975,3744.2,3744.1,0.4613]
[1753036913432,17.5737975,3744.2,3744.1,0.4613]
[1753036913636,18.1237975,3744.2,3744.1,0.4613]
[1753036913947,15.453,3744.2,3744.1,0.4613]
[1753036914924,18.1237975,3744.2,3744.1,0.4613]
[1753036915322,15.453,3744.2,3744.1,0.4613]
[1753036915664,18.1237975,3744.2,3744.1,0.4613]
[1753036915965,15.453,3744.2,3744.1,0.4613]
[1753036917650,12.453,3744.2,3744.1,0.4613]
[1753036919648,4.682,3744.2,3744.1,0.4613]
[1753036920631,4.682,3744.2,3744.1,0.94357932]
[1753036921120,4.682,3744.2,3744.1,0.4613]
[1753036922915,4.682,3744.2,3744.1,0.021]
[1753036923747,4.682,3744.2,3744.1,0.4695]
[1753036923748,7.3527975,3744.2,3744.1,0.4695]
[1753036923952,4.682,3744.2,3744.1,0.4695]
[1753036924628,4.681,3744.2,3744.1,0.4695]
[1753036925868,11.08697141,3744.2,3744.1,0.021]
[1753036926177,11.52777141,3744.2,3744.1,0.021]
[1753036926463,11.08697141,3744.2,3744.1,0.021]
[1753036926654,11.52777141,3744.2,3744.1,0.021]
[1753036927230,11.08697141,3744.2,3744.1,0.021]
[1753036928878,11.08597141,3744.2,3744.1,0.021]
[1753036929436,3.55,3744.2,3744.1,0.021]
[1753036929640,7.68,3744.2,3744.1,0.4695]
[1753036931532,4.68,3744.2,3744.1,0.4695]
[1753036933144,4.8118,3744.2,3744.1,3.14036883]
[1753036933347,0.1328,3744.2,3744.1,3.14036883]
[1753036933657,0.002,3744.3,3744.2,3.4630975]
[1753036934060,4.131,3744.3,3744.2,3.9115975]
[1753036936046,0.002,3744.3,3744.2,3.9115975]
[1753036936248,4.131,3744.3,3744.2,3.9115975]
[1753036936661,0.002,3744.3,3744.2,3.9115975]
[1753036936884,4.131,3744.3,3744.2,4.64356776]
[1753036937182,4.13,3744.3,3744.2,4.64356776]
[1753036939496,0.002,3744.3,3744.2,4.64356776]
[1753036939698,4.13,3744.3,3744.2,4.64356776]
[1753036940565,0.002,3744.3,3744.2,4.64356776]
[1753036940770,4.13,3744.3,3744.2,4.64356776]
[1753036941373,4.13,3744.3,3744.2,1.2408]
[1753036941576,0.002,3744.7,3744.3,3.49402617]
[1753036941781,0.002,3745.8,3744.3,3.49402617]
[1753036941782,0.002,3746.2,3746.1,2.66944288]
[1753036941971,0.002,3746.2,3746.1,4.95503306]
[1753036942180,0.002,3746.2,3746.1,5.40353306]
[1753036942677,0.002,3746.2,3746.1,8.0949373]
[1753036942860,0.002,3746.2,3746.1,9.14468961]
[1753036943058,0.002,3746.2,3746.1,5.01768961]
[1753036943263,0.002,3746.2,3746.1,8.06824288]
[1753036945112,0.002,3746.2,3746.1,3.94124288]
[1753036945313,0.002,3746.2,3746.1,8.06824288]
[1753036946838,1e-08,3746.2,3746.1,11.06824288]
[1753036947006,1e-08,3746.2,3746.1,12.44202342]
[1753036947342,1e-08,3746.5,3746.4,6.50032912]
[1753036947503,1e-08,3746.9,3746.8,6.50004416]
[1753036947702,0.002,3747.1,3747.0,6.4999017]
[1753036948309,0.002,3747.1,3747.0,6.9692017]
[1753036948514,0.002,3747.7,3747.1,5.66873048]
[1753036948821,0.002,3747.7,3747.1,11.12181778]
[1753036949125,0.002,3747.7,3747.1,11.09513048]
[1753036949346,2.66845425,3747.5,3747.1,5.4254]
[1753036949486,0.55,3747.5,3746.8,3.13818682]
[1753036949693,0.55,3747.6,3746.9,6.79382574]
[1753036950003,0.002,3747.7,3747.0,2.6688017]
[1753036950195,0.002,3747.7,3747.1,2.66873048]
[1753036950396,0.002,3747.7,3747.1,7.26303048]
[1753036950724,0.002,3747.7,3747.1,0.81135821]
[1753036950928,2.6684533,3747.5,3747.1,4.125]
[1753036951225,0.4503,3747.7,3747.1,4.125]
[1753036951435,0.552,3747.4,3747.1,4.125]
[1753036951726,0.002,3747.4,3747.1,4.5943]
[1753036951939,0.002,3747.4,3747.1,8.05393048]
[1753036952235,0.002,3747.4,3747.1,8.18673048]
[1753036952395,0.002,3747.4,3747.1,9.27228959]
[1753036952597,0.002,3747.4,3747.1,12.27228959]
[1753036952793,0.002,3747.4,3747.1,8.14728959]
[1753036953132,0.002,3747.4,3747.1,12.27128959]
[1753036954747,0.002,3747.4,3747.1,8.14728959]
[1753036954901,0.002,3747.4,3747.1,12.27028959]
[1753036955103,2.6705774,3747.4,3746.6,0.4693]
[1753036955337,2.66859054,3747.3,3746.7,4.7251]
[1753036955715,2.66859054,3747.3,3746.8,0.4693]
[1753036955936,2.66861182,3747.3,3746.8,0.4693]
[1753036956118,2.66861182,3747.3,3746.9,4.123]
[1753036956417,2.66860091,3747.3,3746.9,4.123]
[1753036956618,0.1348,3747.4,3747.0,0.4693]
[1753036956819,0.1348,3747.4,3747.1,4.123]
[1753036957019,0.1348,3747.4,3747.1,4.5923]
[1753036958141,0.1348,3747.4,3747.1,0.4693]
[1753036958303,0.1348,3747.4,3747.1,4.5923]
[1753036960144,2.66861452,3747.3,3747.1,4.122]
[1753036960946,2.80333441,3747.4,3747.1,4.122]
[1753036961307,2.66861787,3747.3,3747.1,4.122]
[1753036961671,2.67066783,3747.2,3746.7,0.6021]
[1753036961872,0.9983,3747.1,3746.0,2.66948636]
[1753036962029,2.80186956,3746.7,3746.1,4.122]
[1753036962343,2.66910069,3746.6,3746.1,4.122]
[1753036962542,2.80183683,3746.7,3746.1,4.122]
[1753036962710,2.80183683,3746.7,3746.2,0.4693]
[1753036962907,2.66911265,3746.6,3746.3,4.122]
[1753036963108,2.66911265,3746.6,3746.2,0.4693]
[1753036963308,2.66911265,3746.6,3746.3,4.122]
[1753036963541,2.66911265,3746.6,3746.4,4.122]
[1753036964169,0.1328,3746.7,3746.0,0.1328]
[1753036964467,0.1328,3746.7,3746.1,4.122]
[1753036964634,2.66921117,3746.5,3746.0,0.1328]
[1753036964820,2.80182682,3746.7,3746.2,4.122]
[1753036965025,2.66922534,3746.5,3746.2,4.122]
[1753036965334,2.66942306,3746.2,3745.6,1.2606]
[1753036965531,2.66942306,3746.2,3745.7,4.2548]
[1753036965732,2.66946205,3746.1,3745.8,4.122]
[1753036965957,2.66952455,3746.0,3745.8,4.122]
[1753036966242,0.1328,3746.3,3745.9,4.122]
[1753036966406,2.66941516,3746.2,3745.9,4.122]
[1753036966842,2.66948489,3746.1,3745.9,4.122]
[1753036967159,2.66946812,3746.1,3745.9,4.122]
[1753036967631,2.66951414,3746.0,3745.9,4.122]
[1753036968243,2.66947184,3746.1,3745.9,4.122]
[1753036968562,2.66947184,3746.1,3745.7,0.1328]
[1753036968723,2.66954137,3746.0,3745.7,0.1328]
[1753036969422,2.66965668,3745.8,3745.7,0.1328]
[1753036969642,2.66972795,3745.7,3745.6,4.121]
[1753036974855,2.66972795,3745.7,3745.6,4.122]
[1753036976439,0.1328,3745.8,3745.6,4.122]
[1753036976643,3.35246426,3745.8,3745.7,0.4693]
[1753036977045,3.35246426,3745.8,3745.6,4.122]
[1753036977553,3.35246426,3745.8,3745.6,4.5913]
[1753036978834,0.6828,3745.8,3745.6,4.5913]
[1753036980266,0.6828,3745.8,3745.6,4.122]
[1753036980869,3.21972795,3745.7,3745.6,0.001]
[1753036981570,3.69192795,3745.7,3745.6,0.001]
[1753036983637,6.69192795,3745.7,3745.6,0.001]
[1753036983842,7.43542795,3745.7,3745.6,0.001]
[1753036987150,11.55642795,3745.7,3745.6,0.001]
[1753036987351,13.82953635,3745.7,3745.6,0.001]
[1753036988960,2.67008437,3745.2,3745.1,0.02]
[1753036989141,8.08458437,3745.2,3745.1,0.02]
[1753036989345,11.55678437,3745.2,3745.1,0.02]
[1753036990683,11.08458437,3745.2,3745.1,0.02]
[1753036990861,10.70373574,3745.2,3745.1,0.02]
[1753036995365,11.17593574,3745.2,3745.1,0.02]
[1753036996749,11.17593574,3745.2,3745.1,0.021]
[1753036998889,10.70373574,3745.2,3745.1,0.021]
[1753037000990,11.17593574,3745.2,3745.1,0.021]
[1753037003679,15.24071008,3745.2,3745.1,0.021]
[1753037004002,15.98421008,3745.2,3745.1,0.021]
[1753037009597,6.03273574,3745.2,3745.1,0.021]
[1753037009907,4.119,3745.2,3745.1,0.4666]
[1753037010308,4.669,3745.2,3745.1,0.4666]
[1753037010627,6.78908437,3745.2,3745.1,0.4666]
[1753037010772,4.669,3745.2,3745.1,0.4666]
[1753037010972,4.119,3745.2,3745.1,0.4666]
[1753037011219,0.55,3745.2,3745.1,0.4666]
[1753037011421,4.119,3745.2,3745.1,0.4666]
[1753037011722,2.66951997,3746.0,3745.2,0.8142]
[1753037012032,2.66960582,3745.9,3745.2,0.8142]
[1753037012224,7.77,3746.2,3745.4,0.8142]
[1753037012225,0.1328,3745.5,3745.4,0.8142]
[1753037012404,4.8008,3745.5,3745.4,0.8142]
[1753037012608,4.2508,3745.5,3745.4,0.8142]
[1753037012972,4.8008,3745.5,3745.4,0.8142]
[1753037013176,4.2508,3745.5,3745.4,1.2598]
[1753037013385,0.1328,3745.5,3745.4,1.2598]
[1753037013611,0.6828,3745.5,3745.4,1.2598]
[1753037014784,0.55,3745.4,3745.1,0.021]
[1753037014974,0.6828,3745.3,3745.2,0.4456]
[1753037015176,4.8008,3745.3,3745.2,0.4456]
[1753037018797,7.47081308,3745.3,3745.2,0.4456]
[1753037019297,4.8008,3745.3,3745.2,0.4456]
[1753037019504,7.47081308,3745.3,3745.2,0.4456]
[1753037019717,4.8008,3745.3,3745.2,0.4456]
[1753037019913,7.47081308,3745.3,3745.2,0.4456]
[1753037020100,0.55,3745.2,3745.1,0.021]
[1753037020304,3.22008437,3745.2,3745.1,0.021]
[1753037020523,0.55,3745.2,3745.1,0.4666]
[1753037020692,3.22008437,3745.2,3745.1,0.4666]
[1753037021004,4.2341659,3745.2,3745.1,0.021]
[1753037023322,3.22008437,3745.2,3745.1,0.021]
[1753037024336,0.1328,3745.3,3745.2,0.8107]
[1753037024652,0.1328,3745.5,3745.2,1.2563]
[1753037024857,0.1328,3745.5,3745.3,2.67001308]
[1753037025010,0.1328,3745.5,3745.3,0.4456]
[1753037025353,0.002,3745.6,3745.5,3.48057051]
[1753037025651,0.002,3745.6,3745.5,3.92617051]
[1753037026214,0.002,3745.6,3745.5,6.92617051]
[1753037029260,0.002,3745.6,3745.5,11.04117051]
[1753037029462,0.002,3745.6,3745.5,6.92617051]
[1753037029676,0.002,3745.6,3745.5,12.01406174]
[1753037030236,0.002,3745.6,3745.5,4.2563]
[1753037030780,0.002,3745.6,3745.5,6.92617051]
[1753037032045,0.002,3745.6,3745.5,1.2563]
[1753037032630,0.002,3745.6,3745.2,1.2296]
[1753037032831,0.002,3745.6,3745.3,0.4456]
[1753037033252,0.002,3745.6,3745.4,0.4456]
[1753037034453,0.002,3745.6,3745.2,0.784]
[1753037034656,2.67184245,3745.6,3745.3,0.4456]
[1753037034888,2.66987341,3745.5,3745.3,0.4456]
[1753037035768,2.6718244,3745.6,3745.3,0.4456]
[1753037035988,2.6718244,3745.6,3745.2,0.784]
[1753037036365,2.6718244,3745.6,3745.3,0.4456]
[1753037036787,2.6698823,3745.5,3745.3,0.4456]
[1753037038072,2.67181898,3745.6,3745.3,0.4456]
[1753037038382,2.67006216,3745.3,3745.1,0.4765]
[1753037038583,3.35286216,3745.3,3745.2,0.4555]
[1753037038966,0.6828,3745.3,3745.2,0.4555]
[1753037039167,0.6828,3745.3,3745.1,0.021]
[1753037039557,0.6828,3745.3,3745.2,0.4555]
[1753037043349,0.1328,3745.3,3745.2,0.4555]
[1753037043894,0.002,3745.6,3745.2,1.67599449]
[1753037044089,0.002,3745.6,3745.4,2.66989938]
[1753037044592,0.002,3745.6,3745.5,0.4555]
[1753037046810,0.002,3745.6,3745.5,3.12537051]
[1753037048992,0.002,3745.6,3745.5,0.4555]
[1753037049904,0.002,3745.6,3745.5,3.12537051]
[1753037050106,0.002,3745.6,3745.5,3.84024429]
[1753037051104,0.002,3745.6,3745.5,1.17037378]
[1753037052072,0.002,3745.6,3745.5,3.84024429]
[1753037052410,0.002,3745.6,3745.5,3.86694299]
[1753037055977,0.002,3745.6,3745.5,4.69234299]
[1753037056178,0.002,3745.6,3745.5,4.66564429]
[1753037059139,0.002,3745.6,3745.5,1.99577378]
[1753037059282,0.002,3745.6,3745.5,4.66564429]
[1753037063616,0.002,3745.6,3745.5,0.8254]
[1753037063827,0.4471,3745.6,3745.4,0.1328]
[1753037064011,2.67184979,3745.6,3745.4,0.1328]
[1753037064921,2.66987051,3745.5,3745.4,0.1328]
[1753037065227,2.67001308,3745.3,3745.2,4.109]
[1753037065522,2.66987051,3745.5,3745.1,0.1538]
[1753037065723,0.002,3745.6,3745.1,4.2628]
[1753037066059,2.67005958,3745.3,3745.1,4.2628]
[1753037066389,2.66996457,3745.4,3745.1,4.2628]
[1753037066791,2.66996457,3745.4,3745.1,0.1538]
[1753037066991,0.002,3745.6,3745.1,0.1538]
[1753037067195,0.002,3745.6,3745.2,0.4555]
[1753037067392,2.67181639,3745.6,3745.2,0.4555]
[1753037067592,2.67181639,3745.6,3745.1,0.1538]
[1753037067799,2.67181639,3745.6,3745.3,0.4555]
[1753037068002,2.66994179,3745.4,3745.1,0.1538]
[1753037068293,0.002,3745.6,3745.1,0.6116]
[1753037068494,2.66992105,3745.5,3745.1,0.6116]
[1753037069424,2.66995949,3745.4,3745.1,0.1538]
[1753037070530,2.67179958,3745.6,3745.1,0.1538]
[1753037070531,2.66989981,3745.5,3745.1,0.1538]
[1753037070834,2.66994231,3745.4,3745.1,0.1538]
[1753037071125,2.67002509,3745.3,3745.1,0.1538]
[1753037071526,2.66989632,3745.5,3745.1,0.1538]
[1753037072101,2.67181422,3745.6,3745.2,0.4578]
[1753037072419,2.67181422,3745.6,3745.1,0.1538]
[1753037072621,2.67181422,3745.6,3745.3,0.4578]
[1753037072931,2.67181422,3745.6,3745.1,0.1538]
[1753037072932,2.66992165,3745.5,3745.1,0.1538]
[1753037073091,2.66992165,3745.5,3745.3,0.4578]
[1753037073293,2.67182628,3745.6,3745.3,0.4578]
[1753037073492,0.002,3745.6,3745.4,0.4578]
[1753037073896,0.002,3745.6,3745.5,0.4578]
[1753037074097,0.002,3745.6,3745.5,4.98096721]
[1753037075115,0.002,3745.6,3745.5,2.3110967]
[1753037075298,0.002,3745.6,3745.5,4.98096721]
[1753037075933,0.002,3745.6,3745.5,2.3110967]
[1753037076098,0.002,3745.6,3745.5,6.4190967]
[1753037077551,0.002,3745.6,3745.5,0.1328]
[1753037077706,0.002,3745.6,3745.5,4.108]
[1753037077901,0.002,3745.6,3745.4,4.107]
[1753037078457,2.66998754,3745.4,3745.1,0.021]
[1753037078656,2.66998754,3745.4,3745.1,0.1538]
[1753037078950,2.66998754,3745.4,3745.1,3.1538]
[1753037079360,2.66989028,3745.5,3745.1,3.1538]
[1753037080019,0.4388,3745.6,3745.1,3.1538]
[1753037080020,2.67181928,3745.6,3745.1,3.1538]
[1753037080223,0.002,3745.6,3745.2,3.1278275]
[1753037080406,0.002,3745.6,3745.2,2.69672834]
[1753037080604,0.002,3745.6,3745.3,0.4578]
[1753037082158,0.002,3745.6,3745.4,0.4578]
[1753037082530,0.002,3745.6,3745.2,4.107]
[1753037082531,2.67180954,3745.6,3745.2,4.107]
[1753037083370,0.002,3745.6,3745.3,0.4578]
[1753037083720,0.002,3745.6,3745.5,0.7982]
[1753037084034,0.002,3745.6,3745.5,8.11137051]
[1753037084570,0.002,3745.6,3745.5,8.56917051]
[1753037088678,0.002,3745.6,3745.5,11.56917051]
[1753037090380,0.002,3745.6,3745.5,7.46217051]
[1753037090678,0.002,3745.6,3745.5,8.03087051]
[1753037092582,0.002,3745.6,3745.5,3.92587051]
[1753037092904,0.002,3745.6,3745.5,8.03087051]
[1753037093046,0.002,3745.6,3745.5,3.92587051]
[1753037093251,0.002,3745.6,3745.5,8.03087051]
[1753037093476,0.002,3745.6,3745.5,9.41423273]
[1753037095091,0.002,3745.6,3745.5,8.95643273]
[1753037095460,0.002,3745.6,3745.5,9.41423273]
[1753037096793,0.002,3745.6,3745.5,9.41323273]
[1753037101172,0.002,3745.6,3745.5,12.41323273]
[1753037102125,0.002,3746.4,3746.0,0.7688]
[1753037102324,0.002,3746.4,3746.3,10.50056739]
[1753037102614,1e-08,3746.4,3746.3,16.74723196]
[1753037102761,1e-08,3746.4,3746.3,17.20993196]
[1753037105085,1e-08,3746.4,3746.3,20.01893196]
[1753037105401,1e-08,3746.4,3746.3,17.20993196]
[1753037106685,0.002,3747.1,3747.0,3.4376017]
[1753037107017,0.002,3747.1,3747.0,15.23940567]
[1753037107224,0.002,3747.1,3747.0,15.21271766]
[1753037107453,0.002,3747.1,3747.0,15.80821766]
[1753037109809,0.002,3747.2,3747.1,6.43753048]
[1753037110017,0.002,3747.2,3747.1,9.31481407]
[1753037110218,0.002,3747.2,3747.1,13.41581407]
[1753037111700,0.002,3747.2,3747.1,13.61993856]
[1753037115124,0.002,3747.2,3747.1,9.51893856]
[1753037115288,0.002,3747.2,3747.1,13.61893856]
[1753037115623,0.002,3747.2,3747.1,16.42793856]
[1753037116433,0.002,3747.2,3747.1,11.86523856]
[1753037116615,0.002,3747.2,3747.1,13.61893856]
[1753037118290,0.002,3747.2,3747.1,15.96323856]
[1753037118498,0.002,3747.2,3747.1,13.15623856]
[1753037118699,0.002,3747.2,3747.1,17.68140558]
[1753037118897,0.002,3747.2,3747.1,20.48840558]
[1753037120097,0.002,3747.2,3747.1,17.68040558]
[1753037120612,0.002,3747.2,3747.1,20.48740558]
[1753037120923,0.002,3747.2,3747.1,24.51087058]
[1753037122558,1e-08,3747.4,3747.3,9.79808805]
[1753037122836,1e-08,3747.4,3747.3,46.65642198]
[1753037123037,0.002,3747.7,3747.6,6.24787442]
[1753037123235,0.002,3747.7,3747.6,17.54114144]
[1753037123538,0.002,3747.7,3747.6,18.00384144]
[1753037123832,1e-08,3747.7,3747.6,18.00384144]
[1753037124043,1e-08,3747.7,3747.6,35.17597612]
[1753037124339,1e-08,3747.9,3747.8,9.24773202]
[1753037124502,1e-08,3748.0,3747.9,9.24766083]
[1753037124700,1e-08,3748.0,3747.9,10.10567249]
[1753037125571,1e-08,3748.0,3747.9,7.29867249]
[1753037125733,1e-08,3748.0,3747.9,9.71325608]
[1753037126321,1e-08,3748.0,3747.9,11.71168242]
[1753037127129,1e-08,3748.0,3747.9,12.10699408]
[1753037127335,0.02,3750.9,3748.8,2.66752027]
[1753037127534,0.02,3750.9,3749.7,2.66681957]
[1753037127535,0.7455,3750.2,3749.7,2.66681957]
[1753037127710,0.7455,3750.2,3749.8,9.79047697]
[1753037127914,0.4312,3750.4,3749.8,5.66680889]
[1753037128128,0.7455,3750.5,3749.8,9.79047697]
[1753037128324,0.7455,3750.5,3749.8,11.35550387]
[1753037128510,0.7455,3750.5,3749.8,9.76380889]
[1753037128710,0.7455,3750.5,3749.8,9.96176659]
[1753037128934,0.02,3750.9,3749.8,9.96176659]
[1753037129139,0.02,3750.9,3749.8,11.21386659]
[1753037129805,0.02,3750.9,3750.8,2.66609789]
[1753037130029,0.02,3750.9,3750.8,13.82556491]
[1753037130208,0.02,3750.9,3750.8,14.25506491]
[1753037130623,0.02,3750.9,3750.8,16.02945181]
[1753037131126,0.02,3750.9,3750.8,11.96698479]
[1753037131337,0.02,3750.9,3750.8,3.0]
[1753037131542,0.02,3750.9,3750.8,3.02666097]
[1753037131852,0.02,3750.9,3750.8,7.12266097]
[1753037132063,0.02,3750.9,3750.8,9.76209789]
[1753037132356,0.02,3750.9,3750.8,7.096]
[1753037132725,0.02,3750.9,3750.8,9.76209789]
[1753037133349,0.02,3750.9,3750.8,10.19159789]
[1753037133533,0.02,3750.9,3750.8,12.23638066]
[1753037134150,0.02,3750.9,3750.8,11.80688066]
[1753037134339,0.02,3750.9,3750.8,11.04688066]
[1753037134743,0.02,3750.9,3750.8,3.0]
[1753037134943,0.02,3750.9,3750.8,7.12166097]
[1753037135150,0.02,3750.9,3750.8,4.095]
[1753037135739,0.1546,3750.9,3750.3,0.02666453]
[1753037135944,0.1546,3750.9,3750.4,4.095]
[1753037136144,0.1346,3750.8,3750.4,4.095]
[1753037136549,0.02,3750.9,3750.4,4.095]
[1753037136954,0.02,3750.9,3750.4,4.12166382]
[1753037137153,0.1546,3750.9,3750.4,4.12166382]
[1753037137346,0.1546,3750.9,3750.8,0.1328]
[1753037137560,0.02,3750.9,3750.8,7.2278]
[1753037137739,0.02,3750.9,3750.8,11.38151822]
[1753037137948,0.02,3750.9,3750.8,4.62042033]
[1753037138128,0.02,3750.9,3750.8,4.2268]
[1753037138770,0.02,3750.9,3750.8,0.1328]
[1753037138934,0.9001,3750.9,3750.8,4.2268]
[1753037139258,0.9001,3750.9,3750.8,0.1328]
[1753037139472,3.56612682,3750.9,3750.8,0.1328]
[1753037139622,1.38870181,3750.9,3750.7,4.094]
[1753037139825,0.7655,3750.9,3750.7,4.094]
[1753037140046,0.7655,3750.9,3750.8,0.1328]
[1753037141970,1.206,3750.9,3750.8,0.1328]
[1753037142283,1.206,3750.9,3750.6,4.2268]
[1753037142579,0.4405,3750.8,3750.5,4.094]
[1753037142767,2.6661449,3750.8,3750.6,4.094]
[1753037142968,0.4405,3750.7,3750.6,4.094]
[1753037143344,0.4405,3750.7,3750.6,4.2268]
[1753037143766,0.4405,3750.7,3750.4,4.094]
[1753037143977,0.4405,3750.6,3750.4,4.094]
[1753037144197,3.431529,3750.9,3750.4,4.094]
[1753037144359,2.66610943,3750.8,3750.6,0.1328]
[1753037144684,0.4405,3750.8,3750.6,0.1328]
[1753037144972,3.10666898,3750.7,3750.6,0.1328]
[1753037145384,0.4405,3750.7,3750.6,0.1328]
[1753037145579,3.10666898,3750.7,3750.6,0.1328]
[1753037146008,3.85216898,3750.7,3750.6,0.1328]
[1753037146491,2.66632553,3750.5,3750.1,4.094]
[1753037146695,2.66645335,3750.3,3750.2,0.1328]
[1753037146894,3.41195335,3750.3,3750.2,0.1328]
[1753037147299,0.7455,3750.3,3750.2,0.1328]
[1753037148315,0.7455,3750.7,3750.2,0.55548]
[1753037148676,0.7455,3750.7,3750.6,0.1328]
[1753037149002,1.186,3750.7,3750.6,0.1328]
[1753037149937,3.85216898,3750.7,3750.6,0.1328]
[1753037150078,1.186,3750.7,3750.6,0.1328]
[1753037151290,3.85216898,3750.7,3750.6,0.1328]
[1753037151493,1.186,3750.7,3750.6,0.1328]
[1753037151921,0.7455,3750.7,3750.6,0.1328]
[1753037152815,2.66611177,3750.8,3750.6,0.55548]
[1753037153017,2.68607406,3750.9,3750.6,0.1328]
[1753037153222,0.02,3750.9,3750.6,0.1328]
[1753037153538,0.02,3750.9,3750.8,0.1328]
[1753037153826,0.02,3750.9,3750.8,4.2268]
[1753037154187,0.02,3750.9,3750.8,7.32239789]
[1753037154387,0.02,3750.9,3750.8,11.39856629]
[1753037155443,0.02,3750.9,3750.8,4.2089684]
[1753037155664,0.02,3750.9,3750.8,8.32962937]
[1753037155865,0.02,3750.9,3750.8,8.3029684]
[1753037156515,0.02,3750.9,3750.8,10.96906629]
[1753037156721,0.02,3750.9,3750.8,8.3019684]
[1753037157359,0.02,3750.9,3750.8,10.96806629]
[1753037158248,0.02,3750.9,3750.8,11.43836629]
[1753037158614,0.02,3750.9,3750.1,0.8017]
[1753037158813,0.4663,3750.8,3750.3,3.0]
[1753037159825,2.66628946,3750.6,3750.3,3.0]
[1753037160027,2.66632642,3750.5,3750.3,3.0]
[1753037160255,2.66625829,3750.6,3750.3,3.0]
[1753037160562,0.4663,3750.8,3750.3,3.7093]
[1753037160740,0.4663,3750.8,3750.3,3.0]
[1753037160741,2.66638225,3750.4,3750.3,3.0]
[1753037160937,2.68607292,3750.9,3750.3,3.0]
[1753037161140,2.66638225,3750.4,3750.3,3.0]
[1753037161455,2.66633419,3750.5,3750.3,3.0]
[1753037161753,2.66636057,3750.5,3750.3,3.0]
[1753037161950,2.66638225,3750.4,3750.3,3.0]
[1753037162119,2.6663251,3750.5,3749.8,1.49505891]
[1753037162310,2.6663251,3750.5,3750.0,3.0]
[1753037162673,2.66626782,3750.6,3750.0,3.0]
[1753037163209,2.66626782,3750.6,3750.0,3.02666666]
[1753037163621,2.66632336,3750.5,3750.0,3.0]
[1753037163859,2.66640469,3750.4,3750.1,0.72688364]
[1753037164028,2.66640469,3750.4,3750.3,3.0]
[1753037164229,2.66633171,3750.5,3750.3,3.0]
[1753037164428,2.66623836,3750.7,3750.2,4.093]
[1753037164429,0.02,3750.9,3750.2,4.093]
[1753037164738,2.66647715,3750.3,3749.8,0.19675891]
[1753037164941,2.66647715,3750.3,3750.0,3.0]